fUSD/lending_fUSD_20260217
["ID","MTS","AMOUNT","RATE_DAILY","PERIOD"]
[405857969,1771366240372,-32850.4601,8.815e-05,2]
[405857971,1771366240382,-172.0,8.83e-05,2]
[405857973,1771366240391,-200.0,8.84e-05,2]
[405857975,1771366240402,-331.0,8.848e-05,2]
[405857977,1771366240413,-436517.29433928,8.856e-05,2]
[405857979,1771366240424,-500.0,8.865e-05,2]
[405857981,1771366240433,-442.0,8.865e-05,2]
[405857983,1771366240443,-457.0,8.883e-05,2]
[405857985,1771366240453,-28173.12,8.899e-05,2]
[405857987,1771366240463,-2400.0,8.9e-05,3]
[405857989,1771366240472,-499.0,8.9e-05,2]
[405857991,1771366240483,-1852.42,8.907e-05,2]
[405857994,1771366240492,-23454.9,8.918e-05,2]
[405857996,1771366240502,-203.0,8.918e-05,2]
[405857998,1771366240511,-402.0,8.935e-05,2]
[405858000,1771366240522,-166.66,8.994e-05,2]
[405858002,1771366240532,-3000.0,9e-05,3]
[405858004,1771366240542,-500.0,9.139e-05,2]
[405858006,1771366240552,-166.66,9.273e-05,2]
[405858008,1771366240565,-250.0,9.281e-05,2]
[405858011,1771366240575,-5242.06615518,9.356e-05,2]
[405858013,1771366240586,-420.0,9.364e-05,2]
[405858015,1771366240596,-255.0,9.365e-05,2]
[405858017,1771366240606,-500.0,9.413e-05,2]
[405858019,1771366240616,-166.66,9.551e-05,2]
[405858021,1771366240626,-500.0,9.687e-05,2]
[405858023,1771366240635,-166.66,9.83e-05,2]
[405858025,1771366240645,-1000.0,9.915e-05,2]
[405858027,1771366240655,-298.72,9.95e-05,2]
[405858029,1771366240665,-500.0,9.961e-05,2]
[405858031,1771366240675,-151.0,0.0001,2]
[405858033,1771366240685,-151.0,0.0001,2]
[405858035,1771366240695,-151.0,0.0001,2]
[405858037,1771366240705,-151.0,0.0001,2]
[405858039,1771366240715,-151.0,0.0001,2]
[405858041,1771366240724,-151.0,0.0001,2]
[405858043,1771366240734,-151.0,0.0001,2]
[405858045,1771366240744,-151.0,0.0001,2]
[405858047,1771366240754,-151.0,0.0001,2]
[405858049,1771366240763,-151.0,0.0001,2]
[405858051,1771366240773,-151.0,0.0001,2]
[405858053,1771366240783,-151.0,0.0001,2]
[405858055,1771366240793,-151.0,0.0001,2]
[405858058,1771366240803,-151.0,0.0001,2]
[405858060,1771366240812,-151.0,0.0001,2]
[405858062,1771366240822,-151.0,0.0001,2]
[405858064,1771366240832,-151.0,0.0001,2]
[405858066,1771366240842,-151.0,0.0001,2]
[405858068,1771366240851,-151.0,0.0001,2]
[405858070,1771366240861,-151.0,0.0001,2]
[405858072,1771366240871,-629.14743314,0.0001,2]
[405858073,1771366240880,-484.95335888,0.0001,2]
[405858074,1771366240890,-484.95335888,0.0001,2]
[405858075,1771366240900,-243.95,0.00010145,2]
[405858076,1771366240910,-500.0,0.00010235,2]
[405858077,1771366240919,-587.0,0.000103,2]
[405858078,1771366240933,-433.0,0.00010301,2]
[405858079,1771366240943,-2823.55,0.00010475,2]
[405858080,1771366240953,-500.0,0.00010509,2]
[405858082,1771366240963,-500.0,0.00010783,2]
[405858084,1771366240973,-500.0,0.00010817,2]
[405858086,1771366240983,-500.0,0.00010817,2]
[405858088,1771366240993,-150.0,0.00010817,2]
[405858090,1771366241007,-150.0,0.00010817,2]
[405858092,1771366241017,-500.0,0.00010817,2]
[405858094,1771366241027,-500.0,0.00010817,2]
[405858095,1771366241036,-500.0,0.00010817,2]
[405858097,1771366241047,-150.0,0.00010817,2]
[405858099,1771366241056,-150.0,0.00010817,2]
[405858101,1771366241067,-500.0,0.00010817,2]
[405858103,1771366241078,-150.0,0.00010817,2]
[405858104,1771366241088,-500.0,0.00010817,2]
[405858105,1771366241098,-500.0,0.00010817,2]
[405858106,1771366241108,-150.0,0.00010817,2]
[405858107,1771366241121,-150.0,0.00010817,2]
[405858108,1771366241131,-150.0,0.00010817,2]
[405858109,1771366241141,-150.0,0.00010817,2]
[405858110,1771366241150,-500.0,0.00010817,2]
[405858111,1771366241160,-500.0,0.00010817,2]
[405858112,1771366241170,-150.0,0.00010817,2]
[405858113,1771366241181,-500.0,0.00010872,2]
[405858114,1771366241192,-500.0,0.00010872,2]
[405858115,1771366241203,-150.0,0.00010872,2]
[405858116,1771366241213,-150.0,0.00010872,2]
[405858117,1771366241223,-500.0,0.00010872,2]
[405858118,1771366241232,-500.0,0.00010872,2]
[405858119,1771366241242,-500.0,0.00010872,2]
[405858120,1771366241253,-500.0,0.00010872,2]
[405858121,1771366241264,-150.0,0.00010872,2]
[405858122,1771366241274,-500.0,0.00010872,2]
[405858123,1771366241284,-500.0,0.00010872,2]
[405858124,1771366241294,-244.28993987,0.00010872,2]
[405858125,1771366241303,-150.0,0.00010872,2]
[405858126,1771366241314,-150.0,0.00010872,2]
[405858127,1771366241324,-150.0,0.00010872,2]
[405858128,1771366241334,-500.0,0.00010872,2]
[405858129,1771366241345,-649.65624143,0.00010872,2]
[405858130,1771366241355,-205.12968692,0.00010872,2]
[405858131,1771366241365,-500.0,0.00010927,2]
[405858132,1771366241375,-500.0,0.00010927,2]
[405858133,1771366241385,-150.0,0.00010927,2]
[405858134,1771366241395,-242.84628954,0.00010927,2]
[405858135,1771366241405,-500.0,0.00010927,2]
[405858136,1771366241415,-500.0,0.00010927,2]
[405858137,1771366241425,-442.49812506,0.00010927,2]
[405858138,1771366241436,-220.15883999,0.00010927,2]
[405858139,1771366241447,-150.0,0.00010927,2]
[405858140,1771366241457,-152.12850518,0.00010927,2]
[405858141,1771366241467,-500.0,0.00010927,2]
[405858142,1771366241477,-150.0,0.00010927,2]
[405858143,1771366241487,-200.36674187,0.00010927,2]
[405858144,1771366241496,-500.0,0.00010927,2]
[405858145,1771366241506,-200.18645604,0.00010927,2]
[405858146,1771366241516,-151.0,0.00010959,4]
[405858147,1771366241526,-9419.8,0.00010959,2]
[405858148,1771366241536,-150.0,0.00010959,2]
[405858149,1771366241546,-150.0,0.00010959,2]
[405858150,1771366241556,-184.46,0.00010959,2]
[405858151,1771366241565,-500.0,0.00010981,2]
[405858152,1771366241575,-500.0,0.00010981,2]
[405858153,1771366241585,-250.53819001,0.00010981,2]
[405858154,1771366241596,-500.0,0.00010981,2]
[405858155,1771366241606,-500.0,0.00010981,2]
[405858156,1771366241616,-295.69274942,0.00010981,2]
[405858157,1771366241626,-500.0,0.00010981,2]
[405858158,1771366241636,-200.89245722,0.00010981,2]
[405858159,1771366241646,-500.0,0.00010981,2]
[405858160,1771366241656,-1000.0,0.00011017,2]
[405858161,1771366241666,-500.0,0.00011036,2]
[405858162,1771366241676,-500.0,0.00011036,2]
[405858163,1771366241686,-500.0,0.00011036,2]
[405858164,1771366241695,-500.0,0.00011036,2]
[405858165,1771366241706,-500.0,0.00011036,2]
[405858166,1771366241716,-500.0,0.00011036,2]
[405858167,1771366241725,-500.0,0.00011057,2]
[405858168,1771366241735,-500.0,0.00011091,2]
[405858169,1771366241745,-500.0,0.00011091,2]
[405858170,1771366241755,-500.0,0.00011091,2]
[405858171,1771366241764,-500.0,0.00011091,2]
[405858172,1771366241775,-500.0,0.00011091,2]
[405858173,1771366241785,-500.0,0.00011091,2]
[405858174,1771366241795,-43669.07100331,0.00011099,2]
[405858175,1771366241805,-43669.07100326,0.00011099,2]
[405858176,1771366241815,-43669.07100326,0.00011099,2]
[405858177,1771366241826,-43669.07100326,0.00011099,2]
[405858178,1771366241836,-43669.07100326,0.00011099,2]
[405858179,1771366241846,-68837.47701458,0.00011099,2]
[405858180,1771366241856,-68837.47701454,0.00011099,2]
[405858181,1771366242208,-68837.47701454,0.00011099,2]
[405858182,1771366242220,-500.0,0.00011146,2]
[405858183,1771366242230,-500.0,0.00011146,2]
[405858184,1771366242239,-500.0,0.00011146,2]
[405858185,1771366242249,-500.0,0.00011146,2]
[405858186,1771366242259,-630.25617345,0.00011146,2]
[405858187,1771366242268,-382.17209928,0.00011146,2]
[405858188,1771366242278,-13457.98,0.00011148,2]
[405858189,1771366242288,-250.0,0.00011149,2]
[405858190,1771366242297,-500.0,0.00011201,2]
[405858191,1771366242307,-500.0,0.00011201,2]
[405858192,1771366242317,-500.0,0.00011201,2]
[405858193,1771366242326,-500.0,0.00011201,2]
[405858194,1771366242353,-500.0,0.00011255,2]
[405858195,1771366242364,-153.2248447,0.00011255,2]
[405858196,1771366242374,-500.0,0.00011255,2]
[405858197,1771366242385,-500.0,0.00011255,2]
[405858198,1771366242396,-500.0,0.0001131,2]
[405858199,1771366242406,-500.0,0.0001131,2]
[405858200,1771366242419,-500.0,0.0001131,2]
[405858201,1771366242436,-823.0,0.0001133,2]
[405858202,1771366242446,-500.0,0.00011331,2]
[405858203,1771366242456,-736.0,0.00011331,2]
[405858204,1771366242466,-43669.07100326,0.00011361,2]
[405858206,1771366242476,-368.2655769,0.00011365,2]
[405858208,1771366242486,-500.0,0.00011365,2]
[405858209,1771366242496,-500.0,0.00011365,2]
[405858210,1771366242507,-5530.0,0.000114,3]
[405858211,1771366242518,-68837.47701454,0.00011413,2]
[405858212,1771366242528,-163.51122534,0.0001142,2]
[405858213,1771366242537,-500.0,0.0001142,2]
[405858214,1771366242548,-500.0,0.00011475,2]
[405858215,1771366242558,-500.0,0.00011529,2]
[405858216,1771366242568,-500.0,0.00011584,2]
[405858217,1771366242579,-500.0,0.00011586,3]
[405858218,1771366242590,-500.0,0.00011605,2]
[405858219,1771366242600,-500.0,0.00011639,2]
[405858220,1771366242610,-500.0,0.00011641,3]
[405858221,1771366242620,-266.33885806,0.00011694,2]
[405858222,1771366242630,-500.0,0.00011696,3]
[405858223,1771366242640,-500.0,0.0001175,3]
[405858224,1771366242651,-5530.0,0.000118,5]
[405858225,1771366242661,-500.0,0.00011805,3]
[405858226,1771366242671,-433.69347785,0.00011814,2]
[405858227,1771366242681,-150.0,0.00011814,2]
[405858229,1771366242691,-500.0,0.0001186,3]
[405858230,1771366242707,-500.0,0.00011879,2]
[405858232,1771366242717,-464.38268717,0.00011915,3]
[405858234,1771366242728,-43669.07100326,0.0001195,2]
[405858236,1771366242738,-1000.0,0.00012118,2]
[405858239,1771366242748,-500.0,0.00012153,2]
[405858241,1771366242760,-500.0,0.00012173,2]
[405858243,1771366242771,-164.61380668,0.00012173,2]
[405858246,1771366242782,-500.0,0.00012173,2]
[405858250,1771366242793,-500.0,0.00012173,2]
[405858253,1771366242804,-500.0,0.00012173,2]
[405858257,1771366242815,-500.0,0.00012173,2]
[405858259,1771366242825,-500.0,0.00012173,2]
[405858260,1771366242836,-545.77855618,0.00012173,2]
[405858261,1771366242846,-500.0,0.00012173,2]
[405858262,1771366242857,-500.0,0.00012173,2]
[405858263,1771366242867,-500.0,0.00012173,2]
[405858264,1771366242878,-500.0,0.00012173,2]
[405858265,1771366242888,-500.0,0.00012173,2]
[405858266,1771366242899,-160.1837527,0.00012173,2]
[405858267,1771366242910,-500.0,0.00012173,2]
[405858268,1771366242921,-500.0,0.00012173,2]
[405858269,1771366242931,-500.0,0.00012173,2]
[405858270,1771366242942,-500.0,0.00012173,2]
[405858271,1771366242953,-500.0,0.00012173,2]
[405858272,1771366242963,-500.0,0.00012173,2]
[405858273,1771366242974,-500.0,0.00012173,2]
[405858274,1771366242985,-218.33608313,0.00012173,2]
[405858275,1771366242997,-500.0,0.00012173,2]
[405858276,1771366243008,-160.37289206,0.00012173,2]
[405858277,1771366243019,-500.0,0.00012173,2]
[405858278,1771366243030,-500.62727143,0.00012173,2]
[405858279,1771366243042,-500.0,0.00012173,2]
[405858280,1771366243052,-500.0,0.00012173,2]
[405858281,1771366243067,-500.0,0.00012173,2]
[405858282,1771366243079,-500.0,0.00012173,2]
[405858283,1771366243090,-500.0,0.00012173,2]
[405858284,1771366243100,-163.58520611,0.00012173,2]
[405858285,1771366243111,-500.0,0.00012173,2]
[405858286,1771366243121,-500.46642231,0.00012173,2]
[405858287,1771366243132,-500.0,0.00012173,2]
[405858288,1771366243143,-68837.47701454,0.00012379,2]
[405858289,1771366243154,-173.355935,0.00012416,2]
[405858290,1771366243165,-500.0,0.00012427,2]
[405858291,1771366243176,-1152.0,0.00012463,2]
[405858292,1771366243186,-1252.0,0.00012464,2]
[405858293,1771366243197,-43669.07100326,0.00012539,2]
[405858294,1771366243208,-500.0,0.00012701,2]
[405858295,1771366243218,-1000.0,0.00012721,2]
[405858296,1771366243229,-228.57891647,0.00012721,2]
[405858297,1771366243239,-571.65229745,0.00012721,2]
[405858298,1771366243250,-1002.81524174,0.00012721,2]
[405858299,1771366243261,-509.22256369,0.00012721,2]
[405858300,1771366243272,-500.0,0.00012721,2]
[405858301,1771366243283,-544.40507509,0.00012721,2]
[405858302,1771366243293,-1000.0,0.00012721,2]
[405858303,1771366243304,-1000.0,0.00012721,2]
[405858304,1771366243314,-1000.0,0.00012721,2]
[405858305,1771366243325,-1000.0,0.00012721,2]
[405858306,1771366243336,-1000.0,0.00012721,2]
[405858307,1771366243346,-615.3930462,0.00012721,2]
[405858308,1771366243357,-928.11420057,0.00012721,2]
[405858309,1771366243368,-1000.0,0.00012721,2]
[405858310,1771366243379,-1000.0,0.00012721,2]
[405858311,1771366243389,-1000.0,0.00012721,2]
[405858312,1771366243399,-501.82748142,0.00012721,2]
[405858313,1771366243410,-1000.0,0.00012721,2]
[405858314,1771366243426,-1000.0,0.00012721,2]
[405858315,1771366243437,-1000.0,0.00012721,2]
[405858316,1771366243455,-1000.0,0.00012721,2]
[405858317,1771366243466,-1071.24633497,0.00012721,2]
[405858318,1771366243477,-1000.0,0.00012721,2]
[405858319,1771366243488,-1000.0,0.00012721,2]
[405858320,1771366243498,-594.05284132,0.00012975,2]
[405858321,1771366243509,-43669.07100326,0.00013128,2]
[405858322,1771366243520,-629.14743313,0.00013157,2]
[405858323,1771366243530,-1758.79423202,0.00013158,2]
[405858324,1771366243541,-7875.93503608,0.00013158,2]
[405858325,1771366243551,-1000.0,0.0001322,2]
[405858326,1771366243562,-744.95097778,0.00013268,2]
[405858327,1771366243573,-623.71743587,0.00013268,2]
[405858328,1771366243584,-1500.0,0.00013268,2]
[405858329,1771366243594,-806.86059886,0.00013268,2]
[405858330,1771366243605,-616.56100589,0.00013268,2]
[405858331,1771366243617,-1500.0,0.00013268,2]
[405858332,1771366243628,-1500.0,0.00013268,2]
[405858333,1771366243639,-1500.0,0.00013268,2]
[405858334,1771366243650,-1500.0,0.00013268,2]
[405858335,1771366243660,-1500.0,0.00013268,2]
[405858336,1771366243671,-932.93855102,0.00013268,2]
[405858338,1771366243682,-1500.0,0.00013268,2]
[405858339,1771366243692,-1513.76878479,0.00013268,2]
[405858340,1771366243703,-344.71223806,0.00013268,2]
[405858341,1771366243714,-1500.0,0.00013268,2]
[405858342,1771366243725,-68837.47701454,0.00013345,2]
[405858343,1771366243735,-3240.0,0.00013425,2]
[405858344,1771366243747,-298.72,0.00013438,2]
[405858345,1771366243757,-187.96,0.00013593,2]
[405858346,1771366243767,-243.95,0.00013605,2]
[405858347,1771366243778,-500.0,0.00013698,2]
[405858348,1771366243792,-500.0,0.00013698,2]
[405858349,1771366243803,-500.0,0.00013698,2]
[405858350,1771366243814,-500.0,0.00013698,2]
[405858351,1771366243825,-500.0,0.00013698,2]
[405858352,1771366243836,-500.0,0.00013698,2]
[405858353,1771366243847,-500.0,0.00013698,2]
[405858354,1771366243858,-500.0,0.00013698,2]
[405858355,1771366243869,-500.0,0.00013698,2]
[405858356,1771366243880,-500.0,0.00013698,2]
[405858357,1771366243890,-500.0,0.00013698,2]
[405858358,1771366243900,-500.0,0.00013698,2]
[405858359,1771366243911,-500.0,0.00013698,2]
[405858360,1771366243922,-307.56,0.00013698,2]
[405858361,1771366243932,-500.0,0.00013698,2]
[405858362,1771366243944,-500.0,0.00013698,2]
[405858363,1771366243955,-500.0,0.00013698,2]
[405858364,1771366243965,-505.58518338,0.00013698,2]
[405858365,1771366243976,-500.0,0.00013698,2]
[405858366,1771366243990,-500.0,0.00013698,2]
[405858367,1771366244004,-500.0,0.00013698,2]
[405858368,1771366244014,-500.0,0.00013698,2]
[405858369,1771366244025,-500.0,0.00013698,2]
[405858370,1771366244037,-500.0,0.00013698,2]
[405858371,1771366244047,-500.0,0.00013698,2]
[405858372,1771366244059,-500.0,0.00013698,2]
[405858373,1771366244071,-500.0,0.00013698,2]
[405858374,1771366244082,-500.0,0.00013698,2]
[405858375,1771366244092,-500.0,0.00013698,2]
[405858376,1771366244102,-500.0,0.00013698,2]
[405858377,1771366244113,-600.82615766,0.00013698,2]
[405858378,1771366244123,-500.0,0.00013698,2]
[405858379,1771366244134,-500.0,0.00013698,2]
[405858380,1771366244145,-500.0,0.00013698,2]
[405858381,1771366244155,-500.0,0.00013698,2]
[405858382,1771366244165,-474.03942024,0.00013698,2]
[405858383,1771366244176,-2052.7,0.00013698,2]
[405858384,1771366244189,-2052.7,0.00013698,2]
[405858385,1771366244200,-2052.7,0.00013698,2]
[405858386,1771366244210,-2052.7,0.00013698,2]
[405858387,1771366244220,-2052.7,0.00013698,2]
[405858388,1771366244231,-2052.7,0.00013698,2]
[405858389,1771366244241,-2052.7,0.00013698,2]
[405858390,1771366244251,-2052.7,0.00013698,2]
[405858391,1771366244261,-2052.7,0.00013698,2]
[405858392,1771366244272,-2052.7,0.00013698,2]
[405858393,1771366244282,-2052.7,0.00013698,2]
[405858394,1771366244293,-2052.7,0.00013698,2]
[405858395,1771366244303,-2052.7,0.00013698,2]
[405858396,1771366244313,-2052.7,0.00013698,2]
[405858397,1771366244324,-2052.7,0.00013698,2]
[405858398,1771366244334,-2052.7,0.00013698,2]
[405858399,1771366244345,-2052.7,0.00013698,2]
[405858400,1771366244355,-2052.7,0.00013698,2]
[405858401,1771366244365,-2052.7,0.00013698,2]
[405858402,1771366244375,-2052.7,0.00013698,2]
[405858403,1771366244386,-2052.7,0.00013698,2]
[405858404,1771366244395,-2052.7,0.00013698,2]
[405858405,1771366244406,-2052.7,0.00013698,2]
[405858406,1771366244416,-2052.77678348,0.00013698,2]
[405858407,1771366244426,-528.4390448,0.00013698,2]
[405858408,1771366244437,-500.0,0.00013698,2]
[405858409,1771366244447,-500.0,0.00013698,2]
[405858410,1771366244458,-500.0,0.00013698,2]
[405858411,1771366244468,-500.0,0.00013698,2]
[405858412,1771366244479,-500.0,0.00013698,2]
[405858413,1771366244490,-500.0,0.00013698,2]
[405858414,1771366244500,-500.0,0.00013698,2]
[405858415,1771366244511,-500.0,0.00013698,2]
[405858416,1771366244521,-586.00467181,0.00013698,2]
[405858417,1771366244531,-500.0,0.00013698,2]
[405858418,1771366244542,-500.0,0.00013698,2]
[405858419,1771366244552,-500.0,0.00013698,2]
[405858420,1771366244574,-500.0,0.00013698,2]
[405858421,1771366244585,-500.0,0.00013698,2]
[405858422,1771366244596,-321.35543779,0.00013698,2]
[405858423,1771366244607,-500.0,0.00013698,2]
[405858424,1771366244618,-500.0,0.00013698,2]
[405858425,1771366244628,-500.0,0.00013698,2]
[405858426,1771366244639,-521.47734983,0.00013698,2]
[405858427,1771366244650,-1013.23,0.00013698,2]
[405858428,1771366244661,-1013.23,0.00013698,2]
[405858429,1771366244671,-1013.23,0.00013698,2]
[405858430,1771366244682,-1013.23,0.00013698,2]
[405858431,1771366244693,-1013.23,0.00013698,2]
[405858432,1771366244703,-1013.23,0.00013698,2]
[405858433,1771366244714,-1013.23,0.00013698,2]
[405858434,1771366244724,-1013.23,0.00013698,2]
[405858435,1771366244735,-1013.23,0.00013698,2]
[405858436,1771366244745,-1013.23,0.00013698,2]
[405858437,1771366244755,-1013.23,0.00013698,2]
[405858438,1771366244766,-1013.23,0.00013698,2]
[405858439,1771366244776,-1013.23,0.00013698,2]
[405858440,1771366244787,-1013.23,0.00013698,2]
[405858441,1771366244798,-1013.23,0.00013698,2]
[405858442,1771366244809,-1013.23,0.00013698,2]
[405858443,1771366244819,-1013.23,0.00013698,2]
[405858444,1771366244830,-1013.23,0.00013698,2]
[405858445,1771366244841,-172.09485914,0.00013698,2]
[405858446,1771366244852,-649.58,0.00013698,2]
[405858447,1771366244864,-649.58,0.00013698,2]
[405858448,1771366244874,-649.58,0.00013698,2]
[405858449,1771366244884,-649.58,0.00013698,2]
[405858450,1771366244895,-649.58,0.00013698,2]
[405858451,1771366244906,-649.58,0.00013698,2]
[405858452,1771366244921,-649.58,0.00013698,2]
[405858453,1771366244931,-649.58,0.00013698,2]
[405858454,1771366244942,-649.58,0.00013698,2]
[405858455,1771366244953,-649.58,0.00013698,2]
[405858456,1771366244964,-649.58,0.00013698,2]
[405858457,1771366244975,-649.58,0.00013698,2]
[405858458,1771366244986,-649.58,0.00013698,2]
[405858459,1771366245000,-649.58,0.00013698,2]
[405858460,1771366245011,-649.58,0.00013698,2]
[405858461,1771366245022,-649.58,0.00013698,2]
[405858462,1771366245033,-649.58,0.00013698,2]
[405858463,1771366245044,-649.58,0.00013698,2]
[405858464,1771366245054,-1139.08,0.00013698,2]
[405858465,1771366245065,-1139.08,0.00013698,2]
[405858466,1771366245076,-1139.08,0.00013698,2]
[405858467,1771366245087,-1139.08,0.00013698,2]
[405858468,1771366245098,-1139.08,0.00013698,2]
[405858469,1771366245108,-1139.08,0.00013698,2]
[405858470,1771366245119,-1139.08,0.00013698,2]
[405858471,1771366245130,-1139.08,0.00013698,2]
[405858472,1771366245140,-1139.08,0.00013698,2]
[405858473,1771366245151,-1139.08,0.00013698,2]
[405858474,1771366245161,-1139.08,0.00013698,2]
[405858475,1771366245171,-1139.08,0.00013698,2]
[405858476,1771366245182,-1139.08,0.00013698,2]
[405858477,1771366245192,-1139.08,0.00013698,2]
[405858478,1771366245202,-1139.08,0.00013698,2]
[405858479,1771366245212,-1139.08,0.00013698,2]
[405858480,1771366245223,-1139.08,0.00013698,2]
[405858481,1771366245233,-1139.08,0.00013698,2]
[405858482,1771366245243,-500.0,0.00013698,2]
[405858483,1771366245253,-536.56841648,0.00013698,2]
[405858484,1771366245263,-546.97,0.00013698,2]
[405858485,1771366245274,-546.97,0.00013698,2]
[405858486,1771366245285,-546.97,0.00013698,2]
[405858487,1771366245295,-546.97,0.00013698,2]
[405858488,1771366245305,-546.97,0.00013698,2]
[405858489,1771366245315,-546.97,0.00013698,2]
[405858490,1771366245326,-546.97,0.00013698,2]
[405858491,1771366245336,-546.97,0.00013698,2]
[405858492,1771366245347,-546.97,0.00013698,2]
[405858493,1771366245358,-546.97,0.00013698,2]
[405858494,1771366245368,-546.97,0.00013698,2]
[405858495,1771366245378,-546.97,0.00013698,2]
[405858496,1771366245389,-546.97,0.00013698,2]
[405858497,1771366245399,-546.97,0.00013698,2]
[405858498,1771366245409,-546.97,0.00013698,2]
[405858499,1771366245419,-546.97,0.00013698,2]
[405858500,1771366245430,-546.97,0.00013698,2]
[405858501,1771366245441,-546.97,0.00013698,2]
[405858502,1771366245451,-500.0,0.00013698,2]
[405858503,1771366245462,-500.0,0.00013698,2]
[405858504,1771366245472,-500.0,0.00013698,2]
[405858505,1771366245482,-500.0,0.00013698,2]
[405858506,1771366245493,-500.0,0.00013698,2]
[405858507,1771366245504,-500.0,0.00013698,2]
[405858508,1771366245514,-1479.1,0.00013698,2]
[405858509,1771366245524,-500.0,0.00013698,2]
[405858510,1771366245534,-1479.1,0.00013698,2]
[405858511,1771366245545,-500.0,0.00013698,2]
[405858513,1771366245556,-1479.1,0.00013698,2]
[405858514,1771366245565,-500.0,0.00013698,2]
[405858515,1771366245576,-1479.1,0.00013698,2]
[405858516,1771366245586,-500.0,0.00013698,2]
[405858517,1771366245597,-1479.1,0.00013698,2]
[405858518,1771366245607,-500.0,0.00013698,2]
[405858519,1771366245618,-1479.1,0.00013698,2]
[405858520,1771366245629,-500.0,0.00013698,2]
[405858521,1771366245640,-1479.1,0.00013698,2]
[405858522,1771366245651,-500.0,0.00013698,2]
[405858523,1771366245661,-1479.1,0.00013698,2]
[405858524,1771366245671,-500.0,0.00013698,2]
[405858525,1771366245682,-1479.1,0.00013698,2]
[405858526,1771366245692,-500.0,0.00013698,2]
[405858527,1771366245702,-1479.1,0.00013698,2]
[405858528,1771366245712,-500.0,0.00013698,2]
[405858529,1771366245724,-1479.1,0.00013698,2]
[405858530,1771366245735,-500.0,0.00013698,2]
[405858531,1771366245746,-1479.1,0.00013698,2]
[405858532,1771366245756,-1479.1,0.00013698,2]
[405858533,1771366245766,-500.0,0.00013698,2]
[405858534,1771366245777,-1479.1,0.00013698,2]
[405858535,1771366245788,-1479.1,0.00013698,2]
[405858536,1771366245798,-1479.1,0.00013698,2]
[405858537,1771366245809,-1479.1,0.00013698,2]
[405858538,1771366245819,-1479.1,0.00013698,2]
[405858539,1771366245830,-500.0,0.00013698,2]
[405858540,1771366245840,-500.0,0.00013698,2]
[405858541,1771366245850,-500.0,0.00013698,2]
[405858542,1771366245860,-500.0,0.00013698,2]
[405858543,1771366245870,-500.0,0.00013698,2]
[405858544,1771366245880,-500.0,0.00013698,2]
[405858545,1771366245890,-500.0,0.00013698,2]
[405858546,1771366245901,-500.0,0.00013698,2]
[405858547,1771366245911,-500.0,0.00013698,2]
[405858548,1771366245921,-500.0,0.00013698,2]
[405858549,1771366245932,-500.0,0.00013698,2]
[405858550,1771366245942,-500.0,0.00013698,2]
[405858551,1771366245952,-200.92210999,0.00013698,2]
[405858552,1771366245962,-1546.47,0.00013698,2]
[405858554,1771366245972,-1546.47,0.00013698,2]
[405858556,1771366245983,-1546.47,0.00013698,2]
[405858558,1771366245992,-1546.47,0.00013698,2]